Cogmind - Beta 13 @@@ ROGUE MODE // 2024.03.21 @ 08:01:57 Player: ChromeKnight Result: Destroyed by G-47 Trooper with Particle Gun Performance ------------- Evolutions (0) 0 Regions Visited (2) 400 Robots Destroyed (23) 115 Value Destroyed (400) 400 Prototype IDs (0) 0 Alien Tech Used (0) 0 Bonus (0) 0 TOTAL SCORE: 915 Bonus ------- None Cogmind --------- Core Integrity 0/250 Matter 203/300 Energy 250/250 System Corruption 0% Temperature Warm (100) Movement Treading (160) Location -10/Mines Parts ------- > --- POWER (1) -------- Ion Engine > --- PROPULSION (2) --- Light Treads Light Treads > --- UTILITY (2) ------ Large Storage Unit > --- WEAPON (2) ------- Small Laser Light Assault Rifle > --- INVENTORY (15) --- Flight Unit Flight Unit Small Storage Unit Structural Scanner Terrain Scanner Hacking Suite Peak State ------------ > --- POWER ------------ Light Ion Engine > --- PROPULSION ------- Light Treads Light Treads > --- UTILITY ---------- Small Storage Unit Large Storage Unit > --- WEAPON ----------- EM Pulse Gun EM Pulse Gun > --- INVENTORY -------- Ion Engine Light Ion Engine Hacking Suite Small Laser Grenade Launcher [Rating: 7] Favorites ----------- Power Light Ion Engine Engine Light Ion Engine Propulsion Light Treads Treads Light Treads Utility Small Storage Unit Storage Small Storage Unit Weapon EM Pulse Gun Energy Gun EM Pulse Gun Ballistic Gun Light Assault Rifle Launcher Grenade Launcher Build | -11 -10 -10 ------- Run | Yrd Mat Min Slots Evolved . | . . . Power . | . . . Propulsion . | . . . Utility . | . . . Weapon . | . . . Parts Attached 24 | 5 9 10 Power 5 | . 3 2 Engine 5 | . 3 2 Core . | . . . Reactor . | . . . Propulsion 6 | 2 2 2 Treads 6 | 2 2 2 Leg . | . . . Wheel . | . . . Hover . | . . . Flight . | . . . Utility 2 | 1 1 . Device . | . . . Storage 2 | 1 1 . Processor . | . . . Hackware . | . . . Protection . | . . . Artifact . | . . . Weapon 11 | 2 3 6 Energy Gun 6 | 2 2 2 Energy Cannon . | . . . Ballistic Gun 2 | . . 2 Ballistic Cannon . | . . . Launcher 3 | . 1 2 Special Weapon . | . . . Impact Weapon . | . . . Slashing Weapon . | . . . Piercing Weapon . | . . . Special Melee Weapon . | . . . Unidentified Prototypes . | . . . Parts Lost 9 | . 2 7 Power 3 | . 1 2 Propulsion 2 | . . 2 Utility . | . . . Weapon 4 | . 1 3 Highest Loss Streak 3 | . 1 3 To Critical Strikes . | . . . Average Slot Usage (%) 83 | . 82 83 Engine 12 | . 11 13 Treads 27 | . 28 27 Storage 14 | . 14 14 Energy Gun 19 | . 26 3 Ballistic Gun 6 | . . 23 Launcher 1 | . 1 . Naked Turns . | . . . Heaviest Build 32 | 9 32 27 Greatest Support 40 | 40 40 40 Greatest Overweight (x) . | . . . Average Overweight (x) . | . . . Largest Inventory Capacity 15 | 8 15 15 Average Capacity 9 | 7 13 15 Most Carried 12 | 3 12 11 Average Carried 4 | 2 7 9 Final Capacity 15 | 8 15 15 Final Carried 11 | 3 11 6 Class Distribution -------------------- 100% | Mutant Dominant Class ---------------- Mutant | -10/Materials Mutant | -10/Mines Resources | -11 -10 -10 ----------- Run | Yrd Mat Min Matter Collected 389 | 219 107 63 Remotely . | . . . Salvage Created 450 | . 226 224 Parts 44 | . 25 19 Haulers Intercepted . | . . . Recyclers Shooed 1 | . . 1 Parts Field Recycled . | . . . Retrieved Matter . | . . . Parts Self-Destructed . | . . . Prevented . | . . . Kills | -11 -10 -10 ------- Run | Yrd Mat Min Combat Hostiles Destroyed 19 | . 8 11 Guns 12 | . 5 7 AOE 6 | . 2 4 Classes Destroyed 5 | . 5 . Worker 2 | . 2 . Operator 1 | . 1 . Watcher 1 | . 1 . Swarmer 14 | . 6 8 Grunt 5 | . 2 3 Best Kill Streak 6 | . 6 4 Combat Bots Only 4 | . 3 4 Max Kills in Single Turn 3 | . 3 3 Gunslinging . | . . . Exploded 3 | . 2 3 Melee . | . . . Uniques/NPCs Destroyed . | . . . Combat | -11 -10 -10 -------- Run | Yrd Mat Min Hostile Shots Fired 162 | . 50 112 Missed 38 | . 13 25 Damage Taken 1523 | . 451 1072 Core 260 | . 85 175 Absorbed by Shields . | . . . Core Remaining (%) 100 | 100 . . Volleys Fired 67 | . 31 36 Largest 2 | . 2 2 Hottest 80 | . 80 70 Shots Fired 120 | . 50 70 Gun 116 | . 47 69 Cannon . | . . . Launcher 4 | . 3 1 Special . | . . . Kinetic 56 | . . 56 Thermal 12 | . 9 3 Explosive 4 | . 3 1 Electromagnetic 48 | . 38 10 Robot Hit Streak 7 | . 7 5 Robot Miss Streak 4 | . 4 4 Penetration Max . | . . . Secondary Targets 2 | . . 2 Max Gunslinging Chain 1 | . . 1 Shots Hit Robots 61 | . 21 40 Core Hits 34 | . 13 21 Critical Kills . | . . . Critical Parts Destroyed . | . . . Critical Strikes . | . . . Melee Attacks . | . . . Impact . | . . . Slashing . | . . . Piercing . | . . . Sneak Attacks . | . . . Combat Hostiles . | . . . Follow-up Attacks . | . . . Damage Inflicted 1050 | . 506 544 Guns 673 | . 317 356 Cannons . | . . . Explosions 374 | . 189 185 Melee . | . . . Ramming 3 | . . 3 Kinetic 301 | . . 301 Thermal 185 | . 117 68 Explosive 257 | . 128 129 Electromagnetic 304 | . 261 43 Impact . | . . . Slashing . | . . . Piercing . | . . . Highest Corruption . | . . . Average Corruption . | . . . Corruption Purged . | . . . Corruption Blocked . | . . . Overload Shots . | . . . Overflow Damage 58 | . 46 12 Projectiles . | . . . Explosions 58 | . 46 12 Melee . | . . . Knockbacks . | . . . Impact . | . . . Kinetic . | . . . Secondary . | . . . Self-Inflicted Damage 155 | . 85 70 Shots 3 | . 1 2 Rammed 1 | . . 1 Targets Rammed 1 | . . 1 Kicked . | . . . Crushed . | . . . Highest Temperature 159 | . 159 91 Average Temperature 43 | . 58 27 Received Heat Transfer 519 | . 93 426 Siege Activations . | . . . Robots Corrupted 1 | . 1 . Combat Hostiles 1 | . 1 . Parts Fried 1 | . 1 . Impact Corruptions . | . . . Robots Melted . | . . . Combat Hostiles . | . . . Parts Melted . | . . . Heat Transferred 350 | . 175 175 Parts Sabotaged . | . . . Parts Stolen . | . . . Parts Stripped . | . . . Power Chain Reactions 1 | . . 1 Alert | -11 -10 -10 ------- Run | Yrd Mat Min Peak Influence 302 | . 302 275 Initial . | . . . Average 49 | . 132 180 Maximum Alert Level 1 | . 1 1 Low Security (%) 90 | 100 88 30 Level 1 9 | . 11 69 Level 2 . | . . . Level 3 . | . . . Level 4 . | . . . Level 5 . | . . . High Security . | . . . Max Security . | . . . Squads Dispatched . | . . . Investigation . | . . . Extermination . | . . . Reinforcement . | . . . Assault . | . . . Garrison . | . . . Intercept . | . . . Searches Triggered . | . . . Construction Impeded . | . . . Haulers Reinforced . | . . . Active Scanning Responses . | . . . Cargo Convoy Interrupts . | . . . Stealth | -11 -10 -10 --------- Run | Yrd Mat Min Distress Signals 1 | . . 1 Communications Jammed . | . . . Distress Signals . | . . . Times Spotted 37 | . 18 19 Peak Tracking Total 5 | . 4 5 Tactical Retreats 3 | . 1 2 Traps | -11 -10 -10 ------- Run | Yrd Mat Min Traps Triggered . | . . . Indirectly . | . . . Trap Hack Attempts . | . . . Triggered . | . . . Disarmed 3 | . 3 . Reprogrammed . | . . . Reused . | . . . Traps Extracted . | . . . Installed . | . . . Triggered . | . . . Machines | -11 -10 -10 ---------- Run | Yrd Mat Min Machines Disabled 3 | . 3 . Max in Single Turn 2 | . 2 . Machines Repaired . | . . . Machines Dismantled . | . . . Machines Sabotaged . | . . . Overloaded Fab Kills . | . . . Hacking | -11 -10 -10 --------- Run | Yrd Mat Min Machines Accessed 4 | . 4 . Terminals 4 | . 4 . Fabricators . | . . . Repair Stations . | . . . Recycling Units . | . . . Scanalyzers . | . . . Garrison Access . | . . . Total Hacks 13 | . 13 . Successful 6 | . 6 . Failed 7 | . 7 . Catastrophic 1 | . 1 . Database Lockouts . | . . . Manual 12 | . 12 . Terminals 13 | . 13 . Fabricators . | . . . Repair Stations . | . . . Recycling Units . | . . . Scanalyzers . | . . . Garrison Access . | . . . Terminal Hacks 1 | . 1 . Disarm Traps 1 | . 1 . Fabricator Hacks . | . . . Repair Station Hacks . | . . . Recycling Unit Hacks . | . . . Scanalyzer . | . . . Garrison Access Hacks . | . . . Unauthorized Hacks 5 | . 5 . Terminals 5 | . 5 . Track 1 | . 1 . Assimilate 1 | . 1 . Botnet 2 | . 2 . Operators 1 | . 1 . Fabricators . | . . . Repair Stations . | . . . Recycling Units . | . . . Scanalyzers . | . . . Garrison Access . | . . . Data Cores Recovered . | . . . Used . | . . . Hacking Detections 4 | . 4 . Full Trace Events 1 | . 1 . Feedback Events . | . . . Feedback Blocked . | . . . Robot Schematics Acquired . | . . . Robots Built . | . . . Authchips . | . . . Time . | . . . Total Robot Build Rating . | . . . Part Schematics Acquired . | . . . Parts Built . | . . . Authchips . | . . . Time . | . . . Total Part Build Rating . | . . . Parts Repaired . | . . . Time . | . . . Parts Recycled . | . . . Recycled Matter . | . . . Retrieved Matter . | . . . Retrieved Components . | . . . Parts Scanalyzed . | . . . Part Schematics Acquired . | . . . Parts Damaged . | . . . Bothacking | -11 -10 -10 ------------ Run | Yrd Mat Min Used RIF Installer . | . . . Robots Hacked . | . . . Non-combat . | . . . Combat . | . . . Robot Hacks Applied . | . . . Relay Couplers Released . | . . . Fabnet Peak Effective % . | . . . Robots Rewired . | . . . Allies Hacked . | . . . Hacks Repelled . | . . . Allies | -11 -10 -10 -------- Run | Yrd Mat Min Total Allies 1 | . 1 . Largest Group 1 | . 1 1 Highest-Rated Group 10 | . 10 10 Highest-Rated Ally 10 | . 10 10 Total Orders 3 | . . 3 STAY 2 | . . 2 FOLLOW 1 | . . 1 Ally Attacks . | . . . Total Damage . | . . . Kills . | . . . Allies Corrupted . | . . . Allies Melted . | . . . Intel | -11 -10 -10 ------- Run | Yrd Mat Min Robot Analysis Total . | . . . Derelict Logs Recovered 1 | . . 1 Drone Launches . | . . . Drone Recoveries . | . . . Exploration | -11 -10 -10 ------------- Run | Yrd Mat Min Turns Passed 3359 | 2231 809 319 Spaces Moved 530 | 59 341 130 Core 5 | 5 . . Treads 525 | 54 341 130 Legs . | . . . Wheels . | . . . Hover . | . . . Flight . | . . . Fastest Speed 50 | 50 160 160 Average Speed 158 | 150 160 160 Slowest Speed 160 | 160 160 160 Overloaded Moves . | . . . Propulsion Burnouts . | . . . Robots Hopped . | . . . Cave-ins Triggered . | . . . Exploration Rate (%) 28 | 5 56 24 Regions Visited 2 Branch Regions 1 Pre-discovered Areas 1 | . . 1 Known Exits Taken . | . . . Unknown Exits Taken 2 | 1 1 . Scrap Searched . | . . . Spaces Dug . | . . . Terrain Destroyed 39 | . 29 10 Melee . | . . . Projectile . | . . . AOE 39 | . 29 10 Terrain Rammed . | . . . Walls Destroyed . | . . . Machines Disabled . | . . . Actions | -11 -10 -10 --------- Run | Yrd Mat Min Total 2933 | 2199 554 180 Wait 2293 | 2133 159 1 Move 528 | 58 340 130 Hop . | . . . Pick Up 14 | 3 9 2 Fast Attach 8 | 5 3 . Attach 9 | . 2 7 Detach 2 | . 2 . Swap 7 | . 4 3 Drop 4 | . 4 . Fire 67 | . 31 36 Melee . | . . . Ram . | . . . Kick . | . . . Crush 1 | . . 1 Escape Stasis . | . . . Rewire . | . . . Trap . | . . . Miscellaneous . | . . . Route ------- -11/Scrapyard -10/Materials (discovered 2 exits: [*Min x2]) -10/Mines History --------- Turn | Location | Event 32 | -11/Scrapyard | Discovered new exit (range 16) 2232 | -11/Scrapyard | Entered Materials 2233 | -10/Materials | Build established: Mutant 2242 | -10/Materials | Discovered new exit (range 14) 2515 | -10/Materials | Discovered new exit (range 13) 3041 | -10/Materials | Entered Mines 3041 | -10/Mines | Accompanied by 1 ally 3123 | -10/Mines | Core integrity fell below 50% 3166 | -10/Mines | Lost 3 parts (1p2w) 3338 | -10/Mines | Core integrity fell below 20% 3352 | -10/Mines | Lost 3 parts (1p2n) 3360 | -10/Mines | Destroyed by G-47 Trooper with Particle Gun Last Messages --------------- 03143_ U-05 Engineer lays Concrete. 03164_ Acquired 11 matter. 03165_ U-05 Engineer builds a Wall. 03166_ Acquired 15 matter. 03170_ Acquired Flight Unit. 03180_ Acquired 13 matter. 03246_ Acquired 18 matter. 03309_ Critical hit (Burn: +37). 03310_ G-34 Mercenary destroyed. 03310_ R-06 Scavenger sends out distress signal. 03319_ Lgt. Treads destroyed. 03320_ Critical hit (Burn: +37). 03321_ Lgt. Ion Engine destroyed. 03338_ G-34 Mercenary destroyed. 03338_ Switching to secondary target: G-47 Trooper. 03352_ Lgt. Assault Rifle destroyed. 03358_ G-47 Trooper destroyed. 03358_ Switching to secondary target: G-47 Trooper. Map ----- +----------------------------------------------------+ | ?????????????????????????????????????????????????? | | ?????????????????????????????????????????????????? | | ?????????????????????????????????????????????????? | | ?????????????????????????????????????????????????? | | ?????????????????????????????????????????????????? | | ?????????????????????????????????????????????????? | | ?????????????????????????????????????????????????? | | ?????????????????????????????????????????????????? | | ?????????????????????????????????????????????????? | | ?????????????????????????????????????????????????? | | ?????????????????????????????????????????????????? | | ????????????????????????????????????##???????????? | | ??????????????????????????????????? ???????????? | | ?????????????????????????????????? ???????????? | | ????????????????????????????????? ????????????? | | ???????????????????????????????? ?????????????? | | ????????????????????###???????? #??????????????? | | ??????????????????### #??????# #???????????????? | | ?????????????????## #????# #???????????????? | | ?????????????# ### ####% #????????????????? | | ?????????????# [ ??????????????????? | | ????????????????# [ ??????????????????? | | ????????????????????# % #?? ??????????????????? | | ????????????????????# =##??# ??####?????????### | | ????????????????????# ##%#???# ?# ##???????## | | ????????????????????#???#@#???# ## ##??????# | | ????????????????????????#g###?# ##????## | | ????????????????????????# #?? ###### | | ????????????????????????### ####### | | ??????????????????????????# % # | | ??????????????????????????# * # | | ??????????????????????????## ###### ###*## # | | ???????????????????????????# #????# #### ## # | | ???????????????????????????# #????# ##??# ## # | | ????????????? ????????# #????# ##???# | | ???????????????? ### #????## ##????# ## # | | ??????????????????????# #?????# #?????# ## # | | ??????????????????????# #####?????# #?????# ## # | | ???????????????????????????????????# #?????# ## | | ???????????????????????????????????# #?????# ## | | ???????????????????????????????????# #????# ### | | ???????????????????????????????????# ##### ### | | ???????????????????????????????????# #?? | | ???????????????????????????????????####### #?? | | ?????????????????????????????????????????## ### | | ???????????????????????????????????????????# ### | | ???????????????????????????????????????????##### | | ????????????????????????????????????? ##### | | ???????????????????????????????????? | | ????????????????????????????????????? ###### | +----------------------------------------------------+ Best States ------------- Heat Dissipation 25 Energy Generation 10 Energy Capacity 250 Matter Stores 300 Matter Capacity 300 Sight Range 16 Terrain Scan Density 10 Evasion (%) 40 Recoil Reduction 2 Item Schematics ----------------- None Robot Schematics ------------------ None Fabricated ------------ Nothing Alien Tech Used ----------------- None Achievements -------------- None Challenges ------------ None Game ------ Seed StorageAbsorptionLink Manual? 0 Play Time 00:08:45 Cumulative 442.7 hours Start 2024.03.21 @ 07:54:54 End 2024.03.21 @ 08:01:57 Sessions 1 Manual Loads 0 Difficulty Rogue Special Mode None Game No. 771 Rogue 616 Adventurer 148 Explorer 7 Win Type - Total 19 Types 16/0/2/1/0/0/0/0/0 Lore% 77 Gallery% 88 Achievement% 73 Wizard Run 0 Options --------- Layout 1 ASCII 0 Keyboard 0 Movement Numpad Keybinds 0 Fullscreen 2 Font 24/Smallcaps Map View 50x35 Zoom Use 0% Tactical HUD 1 Map Filters NONE Filters NONE Steam 1 RUN: 1046361a-6fec-4352-983b-493f4d04e54c